bitfinex/quotes_SOLUSD_20260311
["timestamp","ask_amount","ask_price","bid_price","bid_amount"]
[1773259971611,1.45671293,87.175,87.151,0.02839368]
[1773259975635,1.45671293,87.173,87.151,0.02839368]
[1773259981413,1.45671293,87.173,87.14,2.94938224]
[1773259981618,1.45671293,87.173,87.142,0.02879603]
[1773259982431,1.45671293,87.173,87.1,0.2]
[1773259982635,2.94938224,87.2,87.1,0.2]
[1773259982636,1.44069317,87.149,87.119,12.87352661]
[1773259982836,1.44069317,87.149,87.12,1.20569833]
[1773259983822,1.44069317,87.147,87.12,1.20569833]
[1773259984628,1.44069317,87.147,87.121,1.20574307]
[1773259986947,11.47132672,87.174,87.141,1.20578679]
[1773259987125,1.44069317,87.173,87.147,1.20578679]
[1773259989246,1.44069317,87.173,87.14,2.94938224]
[1773259989247,1.44069317,87.171,87.141,11.47565439]
[1773259989939,1.44069317,87.171,87.142,1.20562823]
[1773259990939,1.44069317,87.169,87.142,1.20562823]
[1773259991139,1.44069317,87.169,87.143,12.68093077]
[1773259991334,1.44069317,87.169,87.144,1.20553975]
[1773259991541,1.44069317,87.169,87.15,2.94938224]
[1773259993548,1.44069317,87.169,87.152,1.20528036]
[1773259997060,1.44069317,87.169,87.153,11.47407432]
[1773260001963,1.44069317,87.169,87.153,12.67862835]
[1773260002170,1.44069317,87.169,87.154,1.20455403]
[1773260002556,1.44069317,87.169,87.15,2.94938224]
[1773260002868,1.44069317,87.169,87.151,1.20447789]
[1773260003767,28.67466889,87.185,87.151,1.20447789]
[1773260003972,1.33891275,87.168,87.151,1.20447789]
[1773260004971,45.86554037,87.212,87.15,2.94938224]
[1773260004972,5.86938224,87.21,87.161,1.32870979]
[1773260005174,28.66725038,87.208,87.17,4.27809203]
[1773260006052,2.94938224,87.2,87.165,1.32870979]
[1773260006457,2.94938224,87.2,87.161,1.32870979]
[1773260006851,1.33891275,87.199,87.161,1.32870979]
[1773260008068,1.33891275,87.197,87.17,2.94938224]
[1773260008270,1.33891275,87.197,87.171,1.32870979]
[1773260008469,1.33891275,87.197,87.17,2.94938224]
[1773260012273,29.17004349,87.2,87.17,2.94938224]
[1773260012274,1.33891275,87.195,87.17,2.94938224]
[1773260013475,1.33891275,87.195,87.17,14.42120838]
[1773260013677,1.33891275,87.195,87.171,1.32870979]
[1773260014382,1.33891275,87.193,87.171,1.32870979]
[1773260017282,1.33891275,87.191,87.171,1.32870979]
[1773260018171,11.46920518,87.19,87.171,1.32870979]
[1773260018380,1.33891275,87.189,87.171,1.32870979]
[1773260020678,1.33891275,87.189,87.17,2.94938224]
[1773260020887,1.46747592,87.187,87.17,2.94938224]
[1773260021080,1.46747592,87.187,87.171,1.37108795]
[1773260022774,1.46747592,87.187,87.171,11.47170503]
[1773260022973,1.46747592,87.187,87.172,1.37108795]
[1773260024184,1.46747592,87.187,87.17,2.94938224]
[1773260024185,1.46747592,87.193,87.174,1.37108795]
[1773260024372,1.46747592,87.204,87.181,1.37108795]
[1773260024577,1.46747592,87.204,87.183,1.37108795]
[1773260025186,1.46747592,87.204,87.183,12.84117733]
[1773260025387,1.46747592,87.204,87.184,1.37108795]
[1773260026888,1.46747592,87.204,87.19,2.94938224]
[1773260027988,1.46747592,87.202,87.183,1.37108795]
[1773260029879,1.33464373,87.2,87.171,1.40211773]
[1773260031001,1.33464373,87.198,87.172,11.47157344]
[1773260031495,1.33464373,87.198,87.172,12.87369117]
[1773260033197,1.33464373,87.196,87.172,12.87369117]
[1773260033400,1.33464373,87.196,87.173,1.40211773]
[1773260036184,11.4685475,87.195,87.173,1.40211773]
[1773260036385,1.33464373,87.194,87.173,1.40211773]
[1773260040593,1.33464373,87.192,87.16,2.94736662]
[1773260040900,1.33464373,87.189,87.152,1.40211773]
[1773260041105,1.33464373,87.187,87.16,2.94736662]
[1773260041790,1.33464373,87.185,87.16,2.94736662]
[1773260041989,1.33464373,87.185,87.161,11.47302119]
[1773260042210,1.33464373,87.185,87.162,1.40211773]
[1773260042407,1.33464373,87.191,87.171,1.40211773]
[1773260042581,4.25464373,87.192,87.176,1.40211773]
[1773260042894,1.33464373,87.191,87.176,1.40211773]
[1773260043286,2.94736662,87.19,87.14,1.40211773]
[1773260043507,2.94736662,87.19,87.1,3.14736662]
[1773260043508,1.33464373,87.169,87.121,1.40211773]
[1773260043685,1.33464373,87.159,87.121,1.40211773]
[1773260043892,1.33464373,87.157,87.123,1.40211773]
[1773260044090,1.33464373,87.157,87.131,1.40211773]
[1773260047491,1.33464373,87.155,87.131,1.40211773]
[1773260049309,1.33464373,87.155,87.13,2.94736662]
[1773260049310,1.33464373,87.155,87.133,1.40211773]
[1773260049507,1.33464373,87.153,87.14,2.94736662]
[1773260049814,4.25464373,87.158,87.141,1.40211773]
[1773260050194,1.33464373,87.157,87.141,1.40211773]
[1773260051613,1.33464373,87.156,87.135,1.40211773]
[1773260054213,1.33464373,87.156,87.136,11.47631289]
[1773260054415,1.33464373,87.156,87.137,1.40211773]
[1773260058814,1.33464373,87.156,87.139,1.40211773]
[1773260064621,1.36318005,87.162,87.139,1.40211773]
[1773260064927,1.36318005,87.162,87.141,1.4635135]
[1773260066223,11.47302119,87.161,87.141,1.4635135]
[1773260066425,1.36318005,87.16,87.141,1.4635135]
[1773260067314,11.47328445,87.159,87.141,1.4635135]
[1773260067514,1.36318005,87.158,87.141,1.4635135]
[1773260073316,1.36318005,87.162,87.143,1.4635135]
[1773260073518,1.36318005,87.177,87.143,1.4635135]
[1773260079216,12.83422712,87.176,87.145,1.4635135]
[1773260079420,12.83422712,87.176,87.144,40.16340769]
[1773260079422,11.47104707,87.176,87.151,1.4635135]
[1773260080129,1.36088899,87.175,87.151,1.4635135]
[1773260083042,1.36088899,87.173,87.153,1.45767795]
[1773260083441,1.36088899,87.173,87.121,57.39142893]
[1773260083442,1.36088899,87.169,87.131,1.45767795]
[1773260083772,1.36088899,87.173,87.151,1.45767795]
[1773260084642,1.36088899,87.183,87.161,1.45767795]
[1773260085146,1.36088899,87.181,87.157,1.45767795]
[1773260086039,1.36088899,87.179,87.157,1.45767795]
[1773260087646,1.36088899,87.178,87.158,11.47341609]
[1773260089246,1.36088899,87.178,87.158,1.45767795]
[1773260089445,1.36088899,87.178,87.16,2.94736662]
[1773260089744,11.47091549,87.177,87.16,4.40504457]
[1773260089930,1.40362435,87.176,87.16,1.45767795]
[1773260090132,1.40362435,87.176,87.156,1.39599197]
[1773260094252,1.40362435,87.176,87.157,1.39599197]
[1773260096358,1.40362435,87.174,87.157,1.39599197]
[1773260096851,1.40362435,87.174,87.158,11.47341609]
[1773260097352,1.40362435,87.174,87.157,12.86948482]
[1773260097652,1.40362435,87.174,87.158,1.39599197]
[1773260098055,1.40362435,87.169,87.135,1.39599197]
[1773260098429,1.40362435,87.169,87.104,57.40244804]
[1773260098430,11.47209985,87.168,87.141,1.39599197]
[1773260098640,1.40362435,87.171,87.151,1.39599197]
[1773260100754,1.40362435,87.169,87.151,1.39599197]
[1773260103838,1.40362435,87.167,87.151,1.39599197]
[1773260106159,1.40362435,87.173,87.151,1.39599197]
[1773260107958,1.40362435,87.171,87.151,1.39599197]
[1773260111348,1.40362435,87.169,87.151,1.39599197]
[1773260114450,1.40362435,87.167,87.151,1.39599197]
[1773260117368,11.47236307,87.166,87.151,1.39599197]
[1773260117564,1.40362435,87.159,87.125,11.47776183]
[1773260117759,40.15327076,87.166,87.1,0.2]
[1773260117760,1.40362435,87.149,87.121,11.47825162]
[1773260118352,1.40362435,87.149,87.11,2.94947821]
[1773260119465,11.47473263,87.148,87.121,1.39599197]
[1773260119969,12.84166939,87.148,87.121,1.39599197]
[1773260120275,1.36693676,87.147,87.121,1.39599197]
[1773260120461,1.36693676,87.146,87.121,1.39599197]
[1773260120655,2.94947821,87.14,87.121,1.39599197]
[1773260121290,1.36693676,87.142,87.121,1.39599197]
[1773260121666,2.94947821,87.14,87.121,1.39599197]
[1773260121867,1.36693676,87.14,87.121,1.39599197]
[1773260122059,11.47565439,87.141,87.121,1.39599197]
[1773260123258,1.36693676,87.154,87.122,1.43352425]
[1773260123463,2.92,87.157,87.122,1.43352425]
[1773260123770,2.92,87.157,87.121,11.47819344]
[1773260123771,2.92,87.157,87.131,1.43352425]
[1773260124681,1.36693676,87.169,87.133,1.43352425]
[1773260124875,4.28693676,87.169,87.14,2.94947821]
[1773260125176,4.28693676,87.169,87.141,1.43352425]
[1773260125474,1.36693676,87.168,87.141,1.43352425]
[1773260125976,1.36693676,87.173,87.141,1.43352425]
[1773260127785,1.36693676,87.171,87.143,1.43352425]
[1773260130658,1.36693676,87.169,87.143,1.43352425]
[1773260131159,1.36693676,87.169,87.145,1.43352425]
[1773260132379,11.47209985,87.168,87.145,1.43352425]
[1773260132578,1.36693676,87.167,87.145,1.43352425]
[1773260134284,1.36693676,87.167,87.147,1.43352425]
[1773260136483,11.47236307,87.166,87.147,1.43352425]
[1773260140483,12.88684021,87.166,87.147,1.43352425]
[1773260140780,1.41447714,87.165,87.147,1.43352425]
[1773260142783,12.88697375,87.165,87.147,1.43352425]
[1773260144384,1.41447714,87.164,87.147,1.43352425]
[1773260145765,1.41447714,87.195,87.151,1.3571059]
[1773260145966,1.41447714,87.193,87.161,1.3571059]
[1773260146162,2.94947821,87.19,87.161,1.3571059]
[1773260146389,1.41447714,87.189,87.161,1.3571059]
[1773260149188,1.41447714,87.187,87.161,1.3571059]
[1773260154295,11.46973137,87.186,87.161,1.3571059]
[1773260154478,1.36298221,87.185,87.155,11.47370444]
[1773260154676,1.36298221,87.185,87.156,1.43404597]
[1773260156396,11.46999449,87.184,87.156,1.43404597]
[1773260156598,1.36298221,87.183,87.156,1.43404597]
[1773260159184,1.36298221,87.183,87.15,2.94947821]
[1773260159185,1.36298221,87.179,87.152,1.43404597]
[1773260161010,1.36298221,87.179,87.15,14.42383146]
[1773260161011,1.36298221,87.179,87.161,1.43404597]
[1773260161305,1.36298221,87.203,87.171,1.43404597]
[1773260161517,2.92,87.205,87.191,1.43404597]
[1773260162407,1.36298221,87.208,87.191,1.43404597]
[1773260162792,1.36298221,87.208,87.181,1.43404597]
[1773260163599,1.36298221,87.203,87.181,1.43404597]
[1773260163992,1.36298221,87.203,87.182,11.47025762]
[1773260164211,1.36298221,87.203,87.183,1.43404597]
[1773260165494,1.36298221,87.209,87.185,1.43404597]
[1773260165695,1.36298221,87.209,87.191,1.43404597]
[1773260171209,1.36298221,87.208,87.191,1.43404597]
[1773260179620,2.92,87.209,87.193,1.43404597]
[1773260180821,3.04647859,87.23,87.192,11.4689421]
[1773260180822,1.42254439,87.219,87.201,1.38687804]
[1773260181003,2.92,87.221,87.21,4.33335663]
[1773260181822,2.92,87.221,87.211,1.38687804]
[1773260187424,2.92,87.22,87.211,1.38687804]
[1773260188405,2.92,87.22,87.207,1.38687804]
[1773260189823,1.42254439,87.219,87.207,1.38687804]
[1773260190528,1.42254439,87.218,87.191,1.38687804]
[1773260191923,1.42254439,87.218,87.2,2.94647859]
[1773260192109,1.42254439,87.229,87.211,1.38687804]
[1773260192309,2.92,87.228,87.211,1.38687804]
[1773260192524,1.42254439,87.227,87.211,1.38687804]
[1773260195616,0.1,87.23,87.212,1.38687804]
[1773260196218,1.52254439,87.23,87.212,1.38687804]
[1773260196732,1.42254439,87.228,87.212,1.38687804]
[1773260199237,1.42254439,87.228,87.213,1.38687804]
[1773260202441,11.46434016,87.227,87.21,2.94647859]
[1773260202739,1.40477751,87.226,87.21,2.94647859]
[1773260203435,1.40477751,87.226,87.21,4.35062658]
[1773260203621,1.40477751,87.226,87.21,2.94647859]
[1773260203932,1.40477751,87.226,87.211,12.87059144]
[1773260204834,1.40477751,87.226,87.211,11.46644345]
[1773260205031,1.40477751,87.226,87.212,1.40414799]
[1773260205640,1.40477751,87.226,87.214,1.40414799]
[1773260206238,1.40477751,87.226,87.213,11.4661805]
[1773260206819,1.40477751,87.226,87.213,12.87032849]
[1773260208936,1.40477751,87.226,87.213,1.40414799]
[1773260209435,1.40477751,87.226,87.21,2.94647859]
[1773260209925,1.40477751,87.226,87.21,4.28000248]
[1773260210125,1.40477751,87.226,87.211,12.79996734]
[1773260210337,1.40477751,87.226,87.212,1.33352389]
[1773260210838,1.40477751,87.226,87.211,11.46644345]
[1773260211042,1.40477751,87.226,87.208,1.33352389]
[1773260211244,1.40477751,87.226,87.21,2.94647859]
[1773260211445,1.40477751,87.226,87.211,1.33352389]
[1773260214039,1.40477751,87.226,87.212,11.46631197]
[1773260214348,1.40477751,87.226,87.213,1.33352389]
[1773260215948,0.1,87.23,87.213,1.33352389]
[1773260216144,1.50520237,87.23,87.213,1.33352389]
[1773260219449,1.50520237,87.23,87.215,1.33352389]
[1773260221737,0.1,87.23,87.215,1.33352389]
[1773260222532,1.50520237,87.23,87.215,1.33352389]
[1773260222937,1.50520237,87.23,87.214,11.46604902]
[1773260223134,1.50520237,87.23,87.21,2.9446937]
[1773260223135,1.40520237,87.228,87.21,2.9446937]
[1773260223337,1.40520237,87.228,87.211,1.33352389]
[1773260229759,1.40520237,87.228,87.205,1.33352389]
[1773260230461,1.40520237,87.228,87.21,2.9446937]
[1773260230635,0.1,87.23,87.211,1.33352389]
[1773260230836,0.1,87.26,87.221,1.33352389]
[1773260231035,11.56143873,87.25,87.205,1.33352389]
[1773260231369,1.43268117,87.249,87.21,4.27821759]
[1773260231660,1.43268117,87.249,87.211,1.33352389]
[1773260231860,11.46158078,87.248,87.213,1.33352389]
[1773260232061,14.38158078,87.248,87.213,1.33352389]
[1773260232255,1.43271401,87.247,87.213,1.33352389]
[1773260232464,1.43271401,87.247,87.221,1.33352389]
[1773260232760,14.38158078,87.248,87.221,1.33352389]
[1773260232968,1.40520237,87.247,87.221,1.33352389]
[1773260233887,1.40520237,87.245,87.222,11.46499736]
[1773260234162,1.40520237,87.245,87.223,1.33352389]
[1773260234361,1.40520237,87.245,87.222,11.46499736]
[1773260234662,1.40520237,87.245,87.222,12.79852125]
[1773260234862,1.40520237,87.245,87.223,1.33352389]
[1773260237671,1.40520237,87.243,87.223,1.33352389]
[1773260239973,1.40520237,87.241,87.221,1.46007342]
[1773260242492,11.46166485,87.248,87.223,1.46007342]
[1773260242858,1.4533402,87.247,87.223,1.46007342]
[1773260245080,11.46184352,87.246,87.223,1.46007342]
[1773260245286,1.4533402,87.245,87.223,1.46007342]
[1773260245990,1.4533402,87.245,87.225,1.46007342]
[1773260249679,0.1,87.25,87.231,1.46007342]
[1773260250064,0.1,87.25,87.233,1.46007342]
[1773260251784,0.1,87.25,87.235,1.46007342]
[1773260253778,0.1,87.25,87.236,11.46315741]
[1773260253989,0.1,87.25,87.237,1.46007342]
[1773260255290,1.5533402,87.25,87.231,1.46007342]
[1773260256174,0.1,87.25,87.231,1.46007342]
[1773260256686,1.5533402,87.25,87.231,1.46007342]
[1773260257385,1.5533402,87.25,87.233,1.46007342]
[1773260257586,1.4533402,87.248,87.229,1.46007342]
[1773260258788,1.4533402,87.248,87.231,1.46007342]
[1773260260190,1.4533402,87.248,87.23,2.9446937]
[1773260260191,1.4533402,87.248,87.233,1.46007342]
[1773260262991,1.45046979,87.246,87.225,1.44898604]
[1773260263802,1.45046979,87.246,87.227,1.44898604]
[1773260264690,1.55046979,87.25,87.227,1.44898604]
[1773260267472,1.55046979,87.25,87.228,11.46420874]
[1773260267786,1.55046979,87.25,87.229,1.44898604]
[1773260268508,1.55046979,87.25,87.207,2.92]
[1773260268509,1.45046979,87.248,87.211,1.44898604]
[1773260268677,1.45046979,87.246,87.211,1.44898604]
[1773260268995,11.46144941,87.249,87.206,1.44898604]
[1773260268996,2.9446937,87.24,87.206,1.44898604]
[1773260269184,1.45046979,87.238,87.206,1.44898604]
[1773260269597,1.45046979,87.236,87.209,1.44898604]
[1773260270686,1.43045648,87.234,87.21,15.82764757]
[1773260270889,1.43045648,87.234,87.211,1.41637894]
[1773260271075,1.43045648,87.229,87.211,1.41637894]
[1773260272700,1.43045648,87.232,87.211,1.41637894]
[1773260272904,1.43045648,87.232,87.213,1.41637894]
[1773260273403,1.43045648,87.234,87.213,1.41637894]
[1773260276604,1.43045648,87.234,87.214,12.88242796]
[1773260276791,1.43045648,87.234,87.214,11.46604902]
[1773260276992,1.43045648,87.234,87.215,1.41637894]
[1773260279696,11.46355163,87.233,87.215,1.41637894]
[1773260279900,1.43045648,87.232,87.211,1.41637894]
[1773260280310,11.46355163,87.233,70.123,0.3]
[1773260280311,1.43045648,87.23,87.196,1.41637894]
[1773260280490,1.43045648,87.228,87.199,11.46793343]
[1773260280691,1.43045648,87.228,87.2,2.9446937]
[1773260281311,1.43045648,87.228,87.199,11.46793343]
[1773260281514,1.43045648,87.228,87.199,12.88431237]
[1773260281704,1.43045648,87.226,87.199,12.88431237]
[1773260281913,1.43045648,87.224,87.194,11.46860012]
[1773260282099,1.43045648,87.222,87.194,11.46860012]
[1773260282301,1.43045648,87.22,87.194,11.46860012]
[1773260282799,1.43045648,87.209,87.177,11.47082376]
[1773260283418,1.43045648,87.209,87.177,12.8872027]
[1773260283794,1.43045648,87.207,87.177,12.8872027]
[1773260284207,1.43045648,87.207,87.18,2.94749235]
[1773260284401,1.43045648,87.207,87.181,1.41637894]
[1773260286221,1.43045648,87.207,87.176,28.67745302]
[1773260286222,1.43045648,87.205,87.182,11.47025762]
[1773260288819,2.92,87.212,87.161,1.41637894]
[1773260288820,1.43045648,87.199,87.161,1.41637894]
[1773260289522,1.43045648,87.199,87.162,1.41637894]
[1773260290599,1.43045648,87.197,87.164,1.41637894]
[1773260291416,1.43045648,87.197,87.171,1.41637894]
[1773260293320,1.43045648,87.207,87.181,1.41637894]
[1773260293825,1.43045648,87.207,87.191,1.41637894]
[1773260294202,11.46628693,87.213,87.191,1.41637894]
[1773260294402,1.43045648,87.212,87.191,1.41637894]
[1773260295324,1.43045648,87.212,87.192,1.41637894]
[1773260297711,1.43045648,87.212,87.194,1.41637894]
[1773260299431,1.43045648,87.21,87.171,1.41637894]
[1773260299616,2.94749235,87.19,87.171,1.41637894]
[1773260299923,1.34681904,87.197,87.173,1.43265081]
[1773260301412,1.34681904,87.205,87.181,1.43265081]
[1773260301611,1.34681904,87.205,87.183,1.43265081]
[1773260303625,11.46736388,87.204,87.183,1.43265081]
[1773260304326,11.46736388,87.204,87.161,2.92]
[1773260304327,1.34681904,87.222,87.191,1.43265081]
[1773260304509,1.04965546,87.214,87.201,1.43265081]
[1773260306431,1.04965546,87.214,87.203,1.43265081]
[1773260308237,1.04965546,87.214,87.204,11.46736388]
[1773260308414,1.04965546,87.214,87.205,1.43265081]
[1773260315320,1.04965546,87.214,87.18,2.94749235]
[1773260315321,1.34681904,87.213,87.18,2.94749235]
[1773260315824,1.34681904,87.212,87.183,11.47012605]
[1773260316324,1.34681904,87.212,87.19,2.94749235]
[1773260317229,1.04965546,87.214,87.192,1.43265081]
[1773260318637,1.04965546,87.214,87.201,1.43265081]
[1773260321039,1.04965546,87.214,87.202,11.46762688]
[1773260321245,1.41787964,87.242,87.203,1.39741673]
[1773260321432,1.41787964,87.242,87.221,1.39741673]
[1773260323052,1.41787964,87.242,87.223,1.39741673]
[1773260324942,1.41787964,87.242,87.225,1.39741673]
[1773260325943,1.41787964,87.24,87.22,12.86263614]
[1773260326329,1.41787964,87.24,87.217,1.39741673]
[1773260327646,1.41787964,87.24,87.217,1.39741673]
[1773260329245,1.41787964,87.24,87.219,1.39741673]
[1773260329739,1.41787964,87.24,87.221,1.39741673]
[1773260330651,1.41787964,87.24,87.222,12.91677261]
[1773260331031,1.41787964,87.24,87.223,1.45177525]
[1773260333646,1.41787964,87.24,87.222,11.46499736]
[1773260335254,1.41787964,87.24,87.222,1.45177525]
[1773260337451,1.41787964,87.24,87.217,1.45177525]
[1773260337636,1.37193314,87.239,87.217,1.45177525]
[1773260338852,1.37193314,87.239,87.218,11.46552317]
[1773260339056,1.37193314,87.239,87.219,1.45177525]
[1773260342668,1.37193314,87.239,87.211,28.66603625]
[1773260342669,1.37193314,87.239,87.221,1.45177525]
[1773260343169,1.37193314,87.249,87.221,1.45177525]
[1773260343468,0.1,87.25,87.231,1.45177525]
[1773260343969,1.47193314,87.25,87.231,1.45177525]
[1773260344956,1.47193314,87.25,87.23,2.94338845]
[1773260344957,1.47193314,87.25,87.233,1.45177525]
[1773260347135,0.1,87.26,87.242,1.45177525]
[1773260347136,1.37193314,87.259,87.242,1.45177525]
[1773260347458,0.1,87.27,87.251,1.45177525]
[1773260347756,1.37193314,87.269,87.25,2.94338845]
[1773260348153,1.47193314,87.28,87.261,1.45177525]
[1773260348353,0.1,87.28,87.261,1.45177525]
[1773260351963,0.1,87.28,87.263,1.45177525]
[1773260354653,0.1,87.28,87.265,1.45177525]
[1773260356158,0.1,87.28,87.27,4.3951637]
[1773260356473,1.47193314,87.3,87.273,1.45177525]
[1773260356774,0.1,87.3,87.283,1.45177525]
[1773260357068,1.47193314,87.3,87.283,1.45177525]
[1773260358862,1.37193314,87.298,87.283,1.45177525]
[1773260359971,11.45364387,87.309,87.291,1.4215331]
[1773260360877,11.45364387,87.309,87.28,11.45734751]
[1773260360878,1.32230382,87.305,87.28,2.94338845]
[1773260361177,1.32230382,87.305,87.271,12.88009321]
[1773260361357,1.32230382,87.305,87.272,1.4215331]
[1773260362751,1.32230382,87.303,87.273,12.87983062]
[1773260363379,1.32230382,87.303,87.273,11.45829752]
[1773260363565,1.32230382,87.303,87.274,1.4215331]
[1773260364966,2.53119993,87.306,87.291,1.4215331]
[1773260365165,11.4540977,87.305,87.291,1.4215331]
[1773260365372,1.32230382,87.304,87.283,1.4215331]
[1773260365866,2.53119993,87.306,87.283,1.4215331]
[1773260367052,1.32230382,87.305,87.285,1.4215331]
[1773260369689,1.32230382,87.305,87.286,11.45659097]
[1773260369889,1.32230382,87.305,87.286,12.87812407]
[1773260370072,1.32230382,87.305,87.287,1.4215331]
[1773260373585,1.32230382,87.303,87.28,2.94338845]
[1773260373774,1.32230382,87.303,87.264,28.64850603]
[1773260373775,1.32230382,87.303,87.27,2.94338845]
[1773260374286,1.32230382,87.303,87.271,1.4215331]
[1773260374683,1.32230382,87.301,87.273,1.4215331]
[1773260374884,1.32230382,87.301,87.27,2.94338845]
[1773260375087,1.32230382,87.299,87.261,1.4215331]
[1773260375276,1.32230382,87.299,87.271,1.4215331]
[1773260375682,1.32230382,87.299,87.281,1.4215331]
[1773260376786,1.32230382,87.299,87.271,1.4215331]
[1773260377888,1.32230382,87.304,87.281,1.4215331]
[1773260378186,11.45387126,87.307,87.281,1.4215331]
[1773260378562,12.77617508,87.307,87.281,1.4215331]
[1773260378963,12.77617508,87.307,87.283,1.4215331]
[1773260379485,1.32230382,87.306,87.283,1.4215331]
[1773260381688,11.4540977,87.305,87.285,1.32043352]
[1773260381987,1.32230382,87.306,87.285,1.32043352]
[1773260382787,12.77639273,87.306,87.285,1.32043352]
[1773260384782,12.77639273,87.306,87.287,1.32043352]
[1773260385189,1.43590129,87.305,87.287,1.32043352]
[1773260385695,1.43590129,87.305,87.288,12.77676199]
[1773260390693,1.43590129,87.305,87.289,1.41018753]
[1773260392491,1.42695359,87.303,87.281,11.45724728]
[1773260392689,1.42695359,87.303,87.282,1.41018753]
[1773260394999,1.42695359,87.303,87.284,1.41018753]
[1773260397288,1.42695359,87.307,87.286,1.41018753]
[1773260398395,1.42695359,87.307,87.28,11.45734649]
[1773260398596,1.42695359,87.307,87.277,1.41018753]
[1773260398985,1.42695359,87.299,87.261,12.87006078]
[1773260399391,1.42695359,87.297,87.262,1.41018753]
[1773260399796,1.42695359,87.297,87.27,2.94338845]
[1773260399997,1.42695359,87.297,87.271,1.41018753]
[1773260401019,1.42695359,87.297,87.262,1.41018753]
[1773260401306,1.42695359,87.297,87.257,1.41018753]
[1773260401307,40.09714965,87.288,87.257,1.41018753]
[1773260401506,1.42695359,87.287,87.252,1.41018753]
[1773260401809,1.42695359,87.279,87.244,1.41018753]
[1773260402400,1.42695359,87.259,87.221,1.41018753]
[1773260402709,1.42695359,87.258,87.231,1.41018753]
[1773260402885,1.42695359,87.279,87.251,1.41018753]
[1773260403218,1.42695359,87.278,87.251,1.41018753]
[1773260403590,1.42695359,87.276,87.251,1.41018753]
[1773260405588,1.42695359,87.274,87.251,1.41018753]
[1773260406705,1.42695359,87.269,87.246,1.41018753]
[1773260408809,1.42695359,87.267,87.246,1.41018753]
[1773260410097,1.42695359,87.267,87.241,1.41018753]
[1773260411907,1.42695359,87.265,87.237,1.41018753]
[1773260412096,1.42695359,87.249,87.226,1.41018753]
[1773260413315,1.42695359,87.249,87.22,1.41018753]
[1773260414309,1.42695359,87.247,87.221,11.46512881]
[1773260414617,11.46113545,87.252,87.222,1.41018753]
[1773260414809,1.42695359,87.251,87.222,1.41018753]
[1773260418517,1.42695359,87.249,87.224,1.41018753]
[1773260419922,1.41707028,87.247,87.224,1.41018753]
[1773260420614,1.41707028,87.247,87.214,28.66512017]
[1773260420615,1.41707028,87.247,87.226,1.32313331]
[1773260421534,1.41707028,87.239,87.199,12.79107916]
[1773260421701,1.41707028,87.229,87.2,1.32313331]
[1773260421902,1.41707028,87.227,87.202,1.32313331]
[1773260424420,1.41707028,87.225,87.202,1.32313331]
[1773260425418,1.41707028,87.225,87.197,11.46823988]
[1773260425419,1.41707028,87.219,87.197,12.79137319]
[1773260425721,1.41707028,87.219,87.197,1.32313331]
[1773260426319,1.41707028,87.217,87.197,1.32313331]
[1773260429012,11.46578609,87.216,87.197,1.32313331]
[1773260429322,1.41707028,87.215,87.197,1.32313331]
[1773260431326,1.41707028,87.22,87.199,1.32313331]
[1773260434507,2.92,87.228,87.201,1.32313331]
[1773260434712,1.41707028,87.227,87.201,1.32313331]
[1773260436718,1.41707028,87.225,87.203,1.32313331]
[1773260437925,11.4644716,87.226,87.205,1.32313331]
[1773260438228,1.41707028,87.233,87.205,1.32313331]
[1773260441213,1.41060699,87.229,87.201,1.34079127]
[1773260445417,1.41060699,87.229,87.202,11.46762688]
[1773260445617,1.41060699,87.229,87.203,1.34079127]
[1773260445819,1.41060699,87.228,87.203,1.34079127]
[1773260447831,1.41060699,87.228,87.205,1.34079127]
[1773260448414,1.41060699,87.226,87.205,1.34079127]
[1773260450514,1.41060699,87.226,87.206,11.46710088]
[1773260450718,1.41060699,87.226,87.207,1.38216225]
[1773260453718,1.41060699,87.226,87.209,1.38216225]
[1773260466238,1.41060699,87.226,87.209,1.38216225]
[1773260471240,28.65612356,87.242,87.19,3.14592619]
[1773260471241,1.41226017,87.219,87.191,1.38216225]
[1773260471546,1.41226017,87.219,87.192,1.38216225]
[1773260472847,1.41226017,87.217,87.194,1.38216225]
[1773260477751,1.41226017,87.215,87.194,1.38216225]
[1773260478134,1.41226017,87.215,87.196,1.38216225]
[1773260480533,1.38120423,87.213,87.19,0.2]
[1773260482567,1.38120423,87.211,87.19,1.55837475]
[1773260483552,1.38120423,87.211,87.191,11.46907364]
[1773260483753,1.38120423,87.211,87.192,1.35837475]
[1773260486748,11.46657493,87.21,87.192,1.35837475]
[1773260486941,1.38120423,87.209,87.192,1.35837475]
[1773260490351,1.38120423,87.213,87.194,1.35837475]
[1773260491257,11.46631197,87.212,87.194,1.35837475]
[1773260491466,12.8475162,87.212,87.194,1.35837475]
[1773260493765,12.8475162,87.212,87.195,11.4685475]
[1773260494067,1.38120423,87.212,87.196,1.35837475]
[1773260494843,11.46644345,87.211,87.196,1.35837475]
[1773260495052,1.38120423,87.212,87.196,1.35837475]
[1773260495671,12.84752071,87.212,87.196,1.35837475]
[1773260496280,1.38120423,87.212,87.198,1.35837475]
[1773260496581,1.38120423,87.211,87.198,1.35837475]
[1773260496956,1.38120423,87.211,87.193,1.35837475]